fUSD/lending_fUSD_20240628
["ID","MTS","AMOUNT","RATE_DAILY","PERIOD"]
[330582078,1719585321618,-5399.1239814,0.000498,120]
[330582079,1719585321663,-433.50633328,0.00049808,120]
[330582080,1719585321708,-1688.0,0.00049863,120]
[330582081,1719585321756,-2159.54,0.00049863,120]
[330582082,1719585321799,-500.0,0.00049863,120]
[330582083,1719585321843,-600.90867268,0.00049863,120]
[330582084,1719585321885,-151.0,0.00049863,120]
[330582085,1719585321927,-200.0,0.000499,120]
[330582086,1719585321973,-175.13407892,0.000499,120]
[330582087,1719585322020,-25000.0,0.000499,120]
[330582088,1719585322066,-551.46098391,0.0005,120]
[330582089,1719585322111,-1556.59911274,0.0005,120]
[330582090,1719585322155,-150.0,0.0005,120]
[330582091,1719585322199,-433.50633328,0.0005,120]
[330582092,1719585322244,-1688.0,0.0005,120]
[330582093,1719585322289,-173.30385091,0.0005,120]
[330582094,1719585322332,-400.25215473,0.0005,120]
[330582095,1719585322378,-600.0,0.0005,120]
[330582096,1719585322425,-173.67,0.0005,120]
[330582097,1719585322470,-373.0,0.0005,120]
[330582098,1719585322513,-626306.14,0.0005,120]
[330582099,1719585322556,-172.0,0.0005,120]
[330582100,1719585322600,-200.0,0.0005,120]
[330582101,1719585322645,-1000000.0,0.0005,120]
[330582102,1719585322688,-151.0,0.00050082,120]
[330582103,1719585322731,-1688.0,0.00050136,120]
[330582104,1719585322775,-500.0,0.00050136,120]
[330582105,1719585322817,-743.49,0.00050136,120]
[330582106,1719585322858,-743.49,0.00050136,120]
[330582107,1719585322900,-743.49,0.00050136,120]
[330582108,1719585322942,-743.49,0.00050136,120]
[330582109,1719585322986,-743.49,0.00050136,120]
[330582110,1719585323029,-743.49,0.00050136,120]
[330582111,1719585323072,-743.49,0.00050136,120]
[330582112,1719585323114,-743.49,0.00050136,120]
[330582113,1719585323157,-743.49,0.00050136,120]
[330582114,1719585323199,-743.49,0.00050136,120]
[330582115,1719585323242,-743.49,0.00050136,120]
[330582116,1719585323284,-743.49,0.00050136,120]
[330582117,1719585323327,-743.49,0.00050136,120]
[330582118,1719585323377,-743.49,0.00050136,120]
[330582119,1719585323428,-743.49,0.00050136,120]
[330582120,1719585323477,-743.49,0.00050136,120]
[330582121,1719585323525,-743.49,0.00050136,120]
[330582122,1719585323572,-743.49,0.00050136,120]
[330582123,1719585323624,-743.49,0.00050136,120]
[330582124,1719585323674,-743.49,0.00050136,120]
[330582125,1719585323724,-743.49,0.00050136,120]
[330582126,1719585323772,-743.49,0.00050136,120]
[330582127,1719585323820,-743.49,0.00050136,120]
[330582128,1719585323868,-743.55,0.00050136,120]
[330582129,1719585323916,-433.50633328,0.00050219,120]
[330582130,1719585323964,-1688.0,0.00050273,120]
[330582131,1719585324016,-1688.0,0.0005041,120]
[330582132,1719585324064,-500.0,0.0005041,120]
[330582133,1719585324111,-433.50633328,0.00050411,120]
[330582134,1719585324159,-1000000.0,0.000505,120]
[330582135,1719585324207,-151.0,0.00050521,120]
[330582136,1719585324260,-961.57722857,0.00050547,120]
[330582137,1719585324308,-433.50633328,0.0005063,120]
[330582138,1719585324356,-2159.54,0.00050684,120]
[330582139,1719585324407,-500.0,0.00050684,120]
[330582140,1719585324457,-150.0,0.00050697,120]
[330582141,1719585324510,-150.0,0.00050708,120]
[330582142,1719585324557,-109120.09803804,0.00050768,120]
[330582143,1719585324609,-433.50633328,0.00050822,120]
[330582144,1719585324657,-298.94890203,0.0005089,120]
[330582145,1719585324704,-500.0,0.00050958,120]
[330582146,1719585324752,-2495.38598225,0.00051,120]
[330582147,1719585324799,-433.50633328,0.00051041,120]
[330582148,1719585324843,-151.0,0.00051178,120]
[330582149,1719585324889,-402.00953863,0.00051232,120]
[330582150,1719585324940,-5293.6,0.0005132,117]
[330582151,1719585325134,-151.0,0.00051342,120]
[330582152,1719585325183,-150.0,0.00051348,120]
[330582153,1719585325231,-465.0,0.000515,120]
[330582154,1719585325276,-2159.54,0.00051506,120]
[330582155,1719585325323,-209.08499402,0.00051799,120]
[330582156,1719585325369,-3373.86331185,0.00051799,120]
[330582157,1719585325416,-123051.96832569,0.000518,120]
[330582158,1719585327044,373.80222695,0.00031364,31]
[330582159,1719585329319,332.76582454,0.00031364,30]
[330582160,1719585330528,-5252.47518386,0.00011098,2]
[330582161,1719585330549,-4714.50354419,0.00011098,2]
[330582162,1719585330570,-10033.02127195,0.00011199,2]
[330582163,1719585340214,500.0,0.00031364,30]
[330582164,1719585346656,-408.5105072,0.0004025,120]
[330582165,1719585346775,-2553.18658292,0.0004798,120]
[330582166,1719585346824,-788.00980687,0.00048,120]
[330582167,1719585346888,-1450.67297812,0.00049,120]
[330582168,1719585346943,-252.70234076,0.00049,120]
[330582169,1719585347006,-177654.12226944,0.000518,120]
[330582170,1719585347053,-931.83777091,0.000518,120]
[330582171,1719585347098,-324.770228,0.000518,120]
[330582172,1719585347143,-151.0,0.00051836,120]
[330582173,1719585347190,-2687.0,0.00051898,68]
[330582174,1719585347241,-408.0,0.00051986,120]
[330582175,1719585347288,-1000.0,0.00051999,120]
[330582176,1719585347334,-500.0,0.00052,120]
[330582177,1719585347383,-1000.0,0.00052,120]
[330582178,1719585347431,-150.0,0.00052,60]
[330582179,1719585347478,-559.0,0.00052,120]
[330582180,1719585347527,-988.61052232,0.00052,120]
[330582181,1719585347575,-496.31964459,0.00052,120]
[330582182,1719585347623,-389.18713439,0.00052,120]
[330582183,1719585347674,-336.50530712,0.00052,120]
[330582184,1719585347721,-500.0,0.00052054,120]
[330582185,1719585347774,-637.86,0.00052055,60]
[330582186,1719585347818,-769.7612307,0.0005212,120]
[330582187,1719585347862,-2495.54298492,0.00052328,120]
[330582188,1719585347910,-2159.54,0.00052328,120]
[330582189,1719585347956,-151.0,0.00052493,120]
[330582190,1719585348003,-1000.0,0.00052499,120]
[330582191,1719585348050,-151.0,0.00052603,120]
[330582192,1719585348584,-2159.54,0.0005315,120]
[330582193,1719585348644,-151.0,0.00053151,120]
[330582194,1719585348695,-151.0,0.00053808,120]
[330582195,1719585348741,-151.0,0.00053863,120]
[330582196,1719585348785,-1499.02,0.0005388,90]
[330582197,1719585348830,-2159.54,0.00053972,120]
[330582198,1719585348877,-1000.0,0.00054,120]
[330582199,1719585348925,-400.0,0.00054,120]
[330582200,1719585348971,-50000.0,0.00054,120]
[330582201,1719585349020,-496.49169311,0.00054,120]
[330582202,1719585349068,-151.0,0.00054466,120]
[330582203,1719585349115,-1378.01,0.00054794,120]
[330582204,1719585349162,-1378.01,0.00054794,120]
[330582205,1719585349210,-1378.01,0.00054794,120]
[330582206,1719585349256,-1378.01,0.00054794,120]
[330582207,1719585349303,-1378.01,0.00054794,120]
[330582208,1719585349350,-1378.01,0.00054794,120]
[330582209,1719585349399,-1378.01,0.00054794,120]
[330582210,1719585349449,-1378.01,0.00054794,120]
[330582211,1719585349495,-1378.01,0.00054794,120]
[330582212,1719585349540,-1378.01,0.00054794,120]
[330582213,1719585349587,-1378.01,0.00054794,120]
[330582214,1719585349638,-1378.01,0.00054794,120]
[330582215,1719585349689,-1378.01,0.00054794,120]
[330582216,1719585349740,-1378.01,0.00054794,120]
[330582217,1719585349788,-1378.01,0.00054794,120]
[330582218,1719585349839,-1378.01,0.00054794,120]
[330582219,1719585349887,-1378.01,0.00054794,120]
[330582220,1719585349934,-1378.01,0.00054794,120]
[330582221,1719585349981,-1378.01,0.00054794,120]
[330582222,1719585350031,-1378.01,0.00054794,120]
[330582223,1719585350076,-1378.01,0.00054794,120]
[330582224,1719585350119,-1378.01,0.00054794,120]
[330582225,1719585350162,-1378.01,0.00054794,120]
[330582226,1719585350207,-1378.0284568,0.00054794,120]
[330582227,1719585350252,-2159.54,0.00054794,120]
[330582228,1719585350296,-623.0,0.00054795,120]
[330582229,1719585350340,-711.0,0.00054795,120]
[330582230,1719585350390,-764.0,0.00054795,120]
[330582231,1719585350434,-747.0,0.00054795,120]
[330582232,1719585350479,-611.0,0.00054795,120]
[330582233,1719585350524,-674.0,0.00054795,120]
[330582234,1719585350567,-608.0,0.00054795,120]
[330582235,1719585350614,-555.0,0.00054795,120]
[330582236,1719585350661,-693.0,0.00054795,120]
[330582237,1719585350706,-1000.0,0.000548,120]
[330582238,1719585350751,-1000.0,0.000548,120]
[330582239,1719585350796,-298.2,0.000548,60]
[330582240,1719585350840,-1000.0,0.000548,120]
[330582241,1719585350886,-500.0,0.00054823,120]
[330582242,1719585350933,-5700.79,0.0005486,117]
[330582243,1719585350976,-1000.0,0.00054999,120]
[330582244,1719585351023,-208.18629415,0.00055,120]
[330582245,1719585351068,-2088.0,0.00055,120]
[330582246,1719585351111,-200.0,0.00055,120]
[330582247,1719585351155,-500.0,0.00055,120]
[330582248,1719585351198,-3114.0,0.00055,120]
[330582249,1719585351243,-74820.79621782,0.00055,120]
[330582250,1719585351286,-24010.50546501,0.00055,120]
[330582251,1719585351329,-3566.267611,0.00055,60]
[330582252,1719585351372,-2500.0,0.000551,90]
[330582253,1719585351415,-151.0,0.00055123,120]
[330582254,1719585351458,-151.0,0.00055123,120]
[330582255,1719585351502,-150.0,0.0005555,120]
[330582256,1719585351547,-2159.54,0.00055616,120]
[330582257,1719585351595,-983.18,0.00055616,120]
[330582258,1719585351654,-151.0,0.00055781,120]
[330582259,1719585351700,-50000.0,0.00056,120]
[330582260,1719585351747,-1000.0,0.00056,120]
[330582261,1719585351792,-11100.46397393,0.00056,120]
[330582262,1719585351838,-350.0,0.000563,120]
[330582263,1719585351884,-151.0,0.00056384,120]
[330582264,1719585352029,-2159.54,0.00056438,120]
[330582265,1719585352075,-151.0,0.00056438,120]
[330582266,1719585352122,-1998.162652,0.00056563,120]
[330582267,1719585352166,-200.0,0.00056799,120]
[330582268,1719585352210,-178.7472256,0.0005686,120]
[330582269,1719585352256,-50000.0,0.00057,120]
[330582270,1719585352303,-151.0,0.00057096,120]
[330582271,1719585352349,-1039.0,0.0005711,120]
[330582272,1719585352396,-2159.6,0.0005726,120]
[330582273,1719585352442,-1000.0,0.00057499,120]
[330582274,1719585353810,216.74417114,0.00048,120]
[330582275,1719585353862,208.51026906,0.00048,120]
[330582276,1719585353925,1357.78596805,0.00049,120]
[330582277,1719585354690,408.0,0.00046986,120]
[330582278,1719585356154,4750835.6791735,0.00057534,60]
[330582279,1719585356622,977.29273747,0.000465,120]
[330582281,1719585366663,535.6681911,0.0004748,120]
[330582282,1719585368141,350.66677609,0.0005,120]
[330582283,1719585375369,244.13429058,0.00031364,120]
[330582284,1719585388124,1145.79452075,0.00031364,120]
[330582285,1719585390693,222.02643706,0.00031364,30]
[330582286,1719585392123,258.06107453,0.00031364,30]
[330582287,1719585393219,246.93318228,0.00031364,120]
[330582293,1719585409410,843.80157209,0.00031364,30]
[330582294,1719585430149,192.87191478,0.00031364,30]
[330582295,1719585430688,392.49509682,0.00031364,120]
[330582296,1719585434335,1048.69896477,0.00031364,30]
[330582297,1719585435073,252.68991519,0.00031364,120]
[330582298,1719585435211,459.999999,0.00031364,30]
[330582299,1719585435450,252.62385074,0.00031364,30]
[330582300,1719585435510,245.95506731,0.00031364,30]
[330582301,1719585436817,171.5898117,0.00031364,30]
[330582302,1719585437700,1437.55921954,0.00031364,120]
[330582303,1719585438593,511.84232081,0.00031364,30]
[330582304,1719585438823,1092.15578614,0.00031364,30]
[330582305,1719585440082,285.95880237,0.00031364,30]
[330582306,1719585440690,43923.45605279,0.00031364,30]
[330582307,1719585441103,209.88487179,0.00031364,120]
[330582308,1719585442573,266.0,0.00031364,30]
[330582309,1719585442955,1001.00962083,0.00031364,30]
[330582310,1719585443131,526.55383834,0.00031364,120]
[330582329,1719585549721,1000.0,0.00031364,30]
[330582330,1719585550741,757.7690325,0.00031364,30]
[330582331,1719585557013,-300.0,0.00011097,2]
[330582332,1719585557035,-1268.88483161,0.00011098,2]
[330582333,1719585557057,-1067.98705014,0.00011098,2]
[330582334,1719585557080,-1013.16514783,0.00011098,2]
[330582335,1719585557107,-1494.4651745,0.00011098,2]
[330582336,1719585557128,-2200.02980555,0.00011196,2]
[330582337,1719585557150,-173.76628846,0.00011197,2]
[330582338,1719585557172,-173.76628846,0.00011197,2]
[330582339,1719585557194,-196.09224429,0.00011197,2]
[330582340,1719585557218,-155.0,0.00011197,2]
[330582341,1719585557239,-2955.57479144,0.00011199,2]
[330582342,1719585557261,-1054.51068328,0.00011199,2]
[330582343,1719585557283,-2200.02980555,0.00011199,2]
[330582344,1719585557305,-155.0,0.00011199,2]
[330582345,1719585557326,-206.13551279,0.00011199,2]
[330582346,1719585557348,-900.0,0.000118,2]
[330582347,1719585605886,155.0,0.000118,2]
[330582348,1719585610901,4330.5923761,0.000118,2]
[330582350,1719585632598,-15977.60124682,0.000118,2]
[330582351,1719585632620,-261.13033745,0.000118,2]
[330582365,1719585691382,-568.03,0.00013436,2]
[330582366,1719585691403,-867.1856,0.00013474,2]
[330582367,1719585691424,-1000.0,0.00013474,2]
[330582368,1719585691446,-12962.5488,0.00013474,2]
[330582369,1719585691468,-995.8186,0.00013474,2]
[330582370,1719585691490,-3032.4,0.00013574,2]
[330582371,1719585691511,-574.017,0.00013574,2]
[330582372,1719585692900,-20000.0,0.00013574,2]
[330582374,1719585707546,-3761.26841573,0.00013574,2]
[330582387,1719585903417,10544.04066681,0.00025,60]
[330582396,1719586013110,1000.0,0.00031519,30]
[330582397,1719586021134,1000.0,0.00031519,30]
[330582399,1719586030260,1000.0,0.00031519,30]
[330582400,1719586052650,1000.0,0.00031514,30]
[330582401,1719586059527,1000.0,0.00031514,30]
[330582402,1719586067606,1000.0,0.00031514,30]
[330582403,1719586083194,1000.0,0.00031514,30]
[330582404,1719586089622,1000.0,0.00031514,30]
[330582405,1719586090003,911.53,0.00031514,30]
[330582406,1719586101114,1000.0,0.00031514,30]
[330582407,1719586105915,1000.0,0.00031514,30]
[330582408,1719586110959,1000.0,0.00031514,30]
[330582410,1719586117238,1000.0,0.00031514,30]
[330582412,1719586126186,1000.0,0.00031514,30]
[330582413,1719586130678,1000.0,0.00031514,30]
[330582414,1719586164157,1000.0,0.00031514,30]
[330582424,1719586232502,-300.0,0.00011198,2]
[330582425,1719586232512,-1114.36815207,0.00011199,2]
[330582426,1719586232523,-968.08911481,0.00011199,2]
[330582427,1719586232534,-7252.24000583,0.00011199,2]
[330582430,1719586232546,-8882.00548358,0.00011199,2]
[330582432,1719586232558,-539.62,0.00012003,2]
[330582434,1719586232569,-1054.51068328,0.00012302,2]
[330582435,1719586232579,-1054.51068328,0.00012302,2]
[330582436,1719586232589,-420.0,0.00012303,2]
[330582437,1719586232599,-154.68,0.0001333,2]
[330582438,1719586232609,-16626.38,0.0001341,2]
[330582439,1719586232618,-2500.0,0.00013474,2]
[330582440,1719586232628,-168.2216111,0.00013516,2]
[330582441,1719586232638,-587.0,0.00013517,2]
[330582442,1719586232647,-1197.61936914,0.0001379,2]
[330582443,1719586232657,-215.54583481,0.00013799,2]
[330582444,1719586232666,-200.0,0.000138,5]
[330582445,1719586232675,-1000.0,0.00013866,2]
[330582446,1719586232685,-500.0,0.000139,5]
[330582447,1719586232694,-997.26533309,0.000139,2]
[330582448,1719586232704,-188.28303004,0.000139,2]
[330582449,1719586232713,-434.96009668,0.000139,2]
[330582450,1719586232722,-318.22363828,0.000139,2]
[330582451,1719586232732,-150.0,0.00013989,2]
[330582452,1719586232741,-816.55,0.0001399,2]
[330582453,1719586232751,-816.55,0.0001399,2]
[330582454,1719586232760,-816.55,0.0001399,2]
[330582455,1719586232769,-816.55,0.0001399,2]
[330582456,1719586232779,-816.55,0.0001399,2]
[330582457,1719586232788,-1133.33652626,0.00013999,5]
[330582458,1719586232798,-444.14807303,0.00014,2]
[330582459,1719586232809,-354212.71724026,0.00014,2]
[330582460,1719586232821,-679.73,0.00014,2]
[330582461,1719586232831,-6827.34329163,0.00014,2]
[330582462,1719586232843,-2852.80510775,0.00014,2]
[330582463,1719586232854,-305.7775,0.00014,2]
[330582465,1719586232869,-966.43463374,0.00014,2]
[330582468,1719586232879,-463.61871879,0.00014,2]
[330582470,1719586232891,-2280.57713759,0.00014,2]
[330582472,1719586232902,-7789.92137686,0.00014,2]
[330582474,1719586232918,-1036.54118653,0.00014,2]
[330582476,1719586232929,-353.79,0.00014,2]
[330582477,1719586233037,-100364.09981995,0.00014,2]
[330582478,1719586233049,-6310.96790771,0.00014,2]
[330582479,1719586233062,-349148.6268173,0.00014,2]
[330582481,1719586233073,-739.69628748,0.00014,2]
[330582487,1719586238357,-518.04242089,0.00013516,2]
[330582489,1719586238367,-60519.93526294,0.00014,2]
[330582490,1719586238415,-11065.83642395,0.00014,2]
[330582495,1719586239255,-25823.8941717,0.00014,2]
[330582496,1719586239269,-458.39071946,0.00014,2]
[330582497,1719586239282,-597.57707239,0.00014,2]
[330582498,1719586239294,-2702.22081626,0.00014,2]
[330582499,1719586239307,-13234.8,0.00014,2]
[330582500,1719586239321,-313.999999,0.00014,2]
[330582501,1719586239333,-4259.9738215,0.00014,2]
[330582502,1719586239344,-2501.34418487,0.00014,2]
[330582503,1719586239356,-314.04688616,0.00014,2]
[330582513,1719586240591,-610.0,0.00014,2]
[330582514,1719586240604,-305.04,0.00014,2]
[330582515,1719586241257,-4.7550598,0.00014,2]
[330582516,1719586241270,-1155.2805463,0.00014,2]
[330582517,1719586241282,-2750.21088999,0.00014,2]
[330582525,1719586242944,-85556.37642796,0.00014,2]
[330582527,1719586242954,-167.57,0.00014141,2]
[330582529,1719586242966,-4047.66325865,0.0001425,2]
[330582531,1719586242976,-50000.0,0.0001425,2]
[330582533,1719586242990,-902.09,0.0001425,2]
[330582535,1719586243000,-539.62,0.00014267,2]
[330582537,1719586243010,-250.0,0.00014315,2]
[330582539,1719586243020,-729.68,0.00014436,2]
[330582541,1719586243030,-1197.61936906,0.00014602,2]
[330582542,1719586243039,-215.54583479,0.00014602,2]
[330582544,1719586243048,-823.0,0.0001485,2]
[330582545,1719586243057,-499.99,0.0001485,2]
[330582546,1719586243069,-4047.66325864,0.00014998,2]
[330582547,1719586243078,-3965.70350846,0.00015,2]
[330582548,1719586243088,-997.26533307,0.00015055,2]
[330582549,1719586243097,-250.0,0.00015528,2]
[330582550,1719586243107,-1197.61936906,0.00015545,2]
[330582551,1719586243118,-215.54583479,0.00015545,2]
[330582552,1719586243127,-175.34,0.00015579,2]
[330582553,1719586243137,-298.08213762,0.00015579,2]
[330582554,1719586243148,-1000.0,0.00015599,2]
[330582555,1719586243157,-4047.66325864,0.00015745,2]
[330582556,1719586243167,-717.3917686,0.00015832,2]
[330582557,1719586243177,-434.96009666,0.0001585,2]
[330582558,1719586243186,-155.0,0.00016172,2]
[330582559,1719586243196,-997.26533307,0.00016209,2]
[330582562,1719586243206,-247.0,0.00016316,2]
[330582565,1719586243215,-1197.61936906,0.00016488,2]
[330582567,1719586243224,-215.54583479,0.00016488,2]
[330582570,1719586243234,-4047.66325864,0.00016493,2]
[330582573,1719586243243,-539.62,0.00016531,2]
[330582575,1719586243253,-2000.0,0.00016986,3]
[330582577,1719586243263,-1037.4340176,0.00017,2]
[330582579,1719586243273,-155.0,0.00017159,2]
[330582581,1719586243282,-4047.66325864,0.00017241,2]
[330582584,1719586243292,-1000.0,0.00017332,2]
[330582586,1719586243302,-997.26533307,0.00017364,2]
[330582587,1719586243311,-1197.61936906,0.00017431,2]
[330582589,1719586243323,-215.54583479,0.00017431,2]
[330582590,1719586243332,-5000.0,0.00017533,2]
[330582591,1719586243342,-804.23118416,0.000176,2]
[330582592,1719586243352,-800.0,0.000177,6]
[330582593,1719586243361,-155.0,0.00017703,2]
[330582594,1719586243371,-434.96009666,0.000178,2]
[330582595,1719586243381,-1100.0,0.000178,6]
[330582596,1719586243390,-1021.52825,0.0001782,2]
[330582597,1719586243401,-357.0,0.00017844,2]
[330582598,1719586243410,-1115.827,0.00017844,2]
[330582599,1719586243421,-1654.0,0.00017844,2]
[330582600,1719586243431,-1830.0,0.00017844,2]
[330582601,1719586243442,-812.0,0.00017844,2]
[330582602,1719586243453,-443.0,0.00017844,2]
[330582603,1719586243463,-458.29,0.00017844,2]
[330582604,1719586243474,-618.0,0.00017844,2]
[330582605,1719586243484,-1304.0,0.00017844,2]
[330582606,1719586243493,-150.0,0.00017844,2]
[330582607,1719586243504,-2410.0,0.00017844,2]
[330582608,1719586243514,-546.0,0.00017844,2]
[330582609,1719586243525,-3199.0,0.00017844,2]
[330582610,1719586243535,-1982.0,0.00017844,2]
[330582614,1719586243545,-5796.0,0.00017844,2]
[330582617,1719586243555,-291.0,0.00017844,2]
[330582620,1719586243566,-5164.0,0.00017844,2]
[330582624,1719586243575,-1660.0,0.00017844,2]
[330582628,1719586243585,-31918.101,0.00017844,2]
[330582631,1719586243595,-1196.0,0.00017844,2]
[330582633,1719586243605,-6223.59863334,0.00017889,2]
[330582636,1719586243615,-551.01002353,0.00017889,5]
[330582638,1719586243624,-245000.0,0.000179,2]
[330582641,1719586243634,-500.0,0.000179,2]
[330582643,1719586243645,-1400.0,0.000179,6]
[330582645,1719586243655,-13809.50222438,0.000179,2]
[330582647,1719586243666,-1104.0,0.00017982,2]
[330582648,1719586243676,-4047.66325864,0.00017989,2]
[330582649,1719586243685,-4472.80371851,0.00017999,2]
[330582650,1719586243695,-106567.22774003,0.00018,2]
[330582651,1719586244064,-1067.0,0.00017844,2]
[330582652,1719586244076,-965.52733,0.00018,2]
[330582653,1719586244088,-1221.24002,0.00018,2]
[330582654,1719586244099,-400.09131853,0.00018,2]
[330582655,1719586244110,-8539.29078826,0.00018,2]
[330582656,1719586244121,-512.88082201,0.00018,2]
[330582664,1719586247030,-2197.79675111,0.00018,2]
[330582665,1719586247042,-387.82,0.00018,2]
[330582667,1719586247054,-907.5,0.00018,2]
[330582669,1719586247068,-12889.70002755,0.00018,2]
[330582671,1719586247085,-918.75679,0.00018,2]
[330582672,1719586247100,-11131.36187488,0.00018,2]
[330582673,1719586247112,-250.10479714,0.00018,2]
[330582674,1719586247196,-155.0,0.00017159,2]
[330582675,1719586247206,-1368.78274965,0.00018,2]
[330582676,1719586247220,-12918.87473322,0.00018,2]
[330582677,1719586247232,-3221.0121816,0.00018,2]
[330582678,1719586247244,-1709.20256337,0.00018,2]
[330582687,1719586312719,1000.0,0.00031514,30]
[330582688,1719586317320,1000.0,0.00031514,30]
[330582753,1719586813139,502.49,0.00031498,120]
[330582770,1719587226972,-496.10852137,0.00011098,2]
[330582782,1719587347196,229396.45683924,0.00031498,120]
[330582789,1719587413209,294.87759736,0.00010998,2]
[330582794,1719587433350,-1137.0,0.00011098,2]
[330582795,1719587433365,-1324.76351156,0.00011098,2]
[330582796,1719587433376,-582.92504737,0.00011098,2]
[330582797,1719587433388,-1535.28736929,0.00011098,2]
[330582798,1719587433399,-718.42740746,0.00011098,2]
[330582799,1719587433410,-575.64835413,0.00011098,2]
[330582800,1719587433420,-1831.08932088,0.00011098,2]
[330582801,1719587433430,-610.49692435,0.00012314,2]
[330582802,1719587433440,-1252.34425535,0.00013128,2]
[330582803,1719587433449,-3136.43540653,0.00013452,2]
[330582804,1719587433462,-16477.26529025,0.00013452,2]
[330582805,1719587433471,-801.13999428,0.00013759,2]
[330582806,1719587433482,-389.78794603,0.00013849,2]
[330582807,1719587433492,-155.0,0.00013989,2]
[330582808,1719587433501,-155.000001,0.00013999,2]
[330582809,1719587433511,-717.3917686,0.00013999,2]
[330582810,1719587433520,-367.34001569,0.00014393,5]
[330582811,1719587433530,-458.67,0.00014669,2]
[330582812,1719587433540,-5000.0,0.00015,2]
[330582813,1719587433549,-499.99,0.00015,2]
[330582814,1719587433559,-2378.65397636,0.00015287,2]
[330582815,1719587433568,-1417.24233548,0.00015399,2]
[330582816,1719587433580,-266.43177024,0.00015399,2]
[330582817,1719587433592,-115.06532029,0.00015399,2]
[330582818,1719587433601,-200.0,0.00015478,2]
[330582819,1719587433615,-256.5540887,0.00015535,2]
[330582820,1719587433626,-156.06430482,0.00015535,2]
[330582821,1719587433636,-250.0,0.00016473,2]
[330582822,1719587433645,-400.0,0.00016559,2]
[330582823,1719587433656,-103.61566075,0.0001663,2]
[330582824,1719587433667,-261.22433925,0.0001663,2]
[330582825,1719587433676,-458.67,0.00016933,2]
[330582826,1719587433686,-600.0,0.0001698,2]
[330582827,1719587433695,-853.46,0.00017233,2]
[330582828,1719587433704,-418.71,0.00017233,2]
[330582829,1719587433714,-853.46,0.00017233,2]
[330582830,1719587433723,-418.71,0.00017233,2]
[330582832,1719587433732,-444.31,0.00017233,2]
[330582835,1719587433741,-417.82,0.00017233,2]
[330582838,1719587433751,-647.26467047,0.00017253,2]
[330582840,1719587433760,-286.47930261,0.00017257,2]
[330582842,1719587433770,-788.1795791,0.00017259,2]
[330582844,1719587433780,-1013.16514783,0.00017259,2]
[330582845,1719587433791,-626.93602647,0.00017444,2]
[330582846,1719587433800,-202.47730064,0.00017444,2]
[330582847,1719587433811,-206.07168017,0.00017566,2]
[330582848,1719587433821,-475.10495739,0.00017566,2]
[330582849,1719587433831,-450.0,0.00017599,2]
[330582850,1719587433840,-402.11559208,0.000176,2]
[330582851,1719587433850,-400.0,0.000176,6]
[330582852,1719587433862,-900.0,0.000177,6]
[330582853,1719587433872,-839.92857098,0.000178,2]
[330582854,1719587433881,-1.65887249,0.000178,2]
[330582855,1719587433894,-210.51262751,0.000178,2]
[330582856,1719587433904,-2940.1145,0.000178,2]
[330582857,1719587433914,-498.63266657,0.000178,2]
[330582858,1719587433924,-598.80968453,0.000178,2]
[330582859,1719587433934,-1400.0,0.000178,6]
[330582860,1719587433945,-241.26650875,0.00017807,2]
[330582861,1719587433955,-226.99073299,0.00017829,2]
[330582862,1719587433966,-812.0,0.00017844,2]
[330582863,1719587433976,-443.0,0.00017844,2]